fUST/lending_fUST_20250901
["ID","MTS","AMOUNT","RATE_DAILY","PERIOD"]
[382694597,1756710652468,-278.677164,0.0001456,2]
[382694598,1756710652477,-278.677164,0.0001456,2]
[382694600,1756710652486,-4712.07,0.0001456,2]
[382694602,1756710652496,-151.0,0.0001456,2]
[382694604,1756710652505,-1367.63,0.0001456,2]
[382694606,1756710652514,-480.0,0.0001456,2]
[382694608,1756710652524,-480.0,0.0001456,2]
[382694610,1756710652533,-480.0,0.0001456,2]
[382694612,1756710652543,-1100.92,0.0001456,2]
[382694614,1756710652552,-480.0,0.0001456,2]
[382694616,1756710652562,-1047.94,0.0001456,2]
[382694618,1756710652571,-827.98,0.0001456,2]
[382694620,1756710652581,-2031.35,0.0001456,2]
[382694622,1756710652591,-480.0,0.0001456,2]
[382694624,1756710652600,-1673.94,0.0001456,2]
[382694626,1756710652610,-4464.16,0.0001456,2]
[382694628,1756710652619,-638.69,0.0001456,2]
[382694630,1756710652629,-1073.57,0.0001456,2]
[382694632,1756710652638,-4391.27,0.0001456,2]
[382694634,1756710652647,-1842.33,0.0001456,2]
[382694636,1756710652657,-586.42,0.0001456,2]
[382694638,1756710652667,-151.0,0.0001456,2]
[382694640,1756710652677,-151.0,0.0001456,2]
[382694642,1756710652687,-525.2,0.0001456,2]
[382694644,1756710652696,-1281.34,0.0001456,2]
[382694646,1756710652706,-151.0,0.0001456,2]
[382694648,1756710652716,-1134.87,0.0001456,2]
[382694650,1756710652725,-568.54,0.0001456,2]
[382694652,1756710652735,-594.62,0.0001456,2]
[382694654,1756710652744,-480.0,0.0001456,2]
[382694656,1756710652753,-247.188492,0.0001456,2]
[382694658,1756710652763,-558.22,0.0001456,2]
[382694660,1756710652771,-480.0,0.0001456,2]
[382694662,1756710652781,-1229.97,0.0001456,2]
[382694664,1756710652790,-1065.05,0.0001456,2]
[382694666,1756710652800,-151.0,0.0001456,2]
[382694668,1756710652809,-151.0,0.0001456,2]
[382694670,1756710652819,-151.0,0.0001456,2]
[382694672,1756710652828,-480.0,0.00014561,2]
[382694674,1756710652838,-321.31208405,0.00014561,2]
[382694675,1756710652848,-480.0,0.00014561,2]
[382694678,1756710652857,-480.0,0.00014561,2]
[382694679,1756710652866,-151.0,0.00014561,2]
[382694681,1756710652876,-480.0,0.00014561,2]
[382694683,1756710652886,-480.0,0.00014561,2]
[382694685,1756710652895,-270.515282,0.00014561,2]
[382694688,1756710652904,-777.42,0.00014561,2]
[382694689,1756710652913,-480.0,0.00014561,2]
[382694691,1756710652923,-480.0,0.00014561,2]
[382694693,1756710652936,-773.54,0.00014561,2]
[382694695,1756710652946,-561.8021234,0.00014561,2]
[382694698,1756710652956,-793.87,0.00014561,2]
[382694700,1756710652967,-151.464156,0.00014561,2]
[382694702,1756710652978,-151.0,0.00014561,2]
[382694704,1756710652987,-480.0,0.00014561,2]
[382694706,1756710652997,-1102.87,0.00014561,2]
[382694707,1756710653007,-510.93,0.00014561,2]
[382694709,1756710653017,-480.0,0.00014561,2]
[382694711,1756710653027,-480.0,0.00014561,2]
[382694714,1756710653037,-480.0,0.00014561,2]
[382694716,1756710653046,-480.0,0.00014561,2]
[382694718,1756710653056,-480.0,0.00014561,2]
[382694720,1756710653066,-480.0,0.00014561,2]
[382694722,1756710653076,-480.0,0.00014561,2]
[382694742,1756710653254,-480.0,0.00014561,2]
[382694744,1756710653264,-480.0,0.00014561,2]
[382694746,1756710653274,-1037.39,0.00014561,2]
[382694748,1756710653283,-480.0,0.00014561,2]
[382694750,1756710653292,-480.0,0.00014561,2]
[382694752,1756710653302,-963.04,0.00014561,2]
[382694754,1756710653312,-480.0,0.00014561,2]
[382694756,1756710653321,-593.3470703,0.00014561,2]
[382694758,1756710653331,-152.352164,0.00014561,2]
[382694760,1756710653340,-151.0,0.00014561,2]
[382694762,1756710653350,-151.0,0.00014561,2]
[382694764,1756710653359,-151.0,0.00014561,2]
[382694766,1756710653369,-480.0,0.00014561,2]
[382694768,1756710653379,-153.073121,0.00014561,2]
[382694770,1756710653388,-151.0,0.00014561,2]
[382694772,1756710653399,-151.0,0.00014561,2]
[382694774,1756710653408,-480.0,0.00014561,2]
[382694776,1756710653418,-613.41,0.00014561,2]
[382694778,1756710653427,-480.0,0.00014561,2]
[382694780,1756710653437,-484.77,0.00014561,2]
[382694782,1756710653446,-480.0,0.00014561,2]
[382694784,1756710653455,-480.0,0.00014561,2]
[382694786,1756710653465,-480.0,0.00014561,2]
[382694788,1756710653475,-495.77,0.00014561,2]
[382694790,1756710653484,-480.0,0.00014561,2]
[382694792,1756710653493,-480.0,0.00014561,2]
[382694794,1756710653502,-480.0,0.00014561,2]
[382694796,1756710653512,-506.5,0.00014561,2]
[382694798,1756710653521,-480.0,0.00014561,2]
[382694800,1756710653530,-962.24,0.00014561,2]
[382694802,1756710653540,-480.0,0.00014561,2]
[382694804,1756710653550,-480.0,0.00014561,2]
[382694806,1756710653559,-154.442497,0.00014561,2]
[382694808,1756710653568,-281.3085323,0.00014561,2]
[382694810,1756710653578,-876.93,0.00014561,2]
[382694812,1756710653587,-480.0,0.00014561,2]
[382694814,1756710653596,-299.371053,0.00014561,2]
[382694816,1756710653606,-480.0,0.00014561,2]
[382694818,1756710653616,-590.68739444,0.00014561,2]
[382694820,1756710653626,-480.0,0.00014561,2]
[382694822,1756710653635,-480.0,0.00014561,2]
[382694824,1756710653644,-845.7,0.00014561,2]
[382694826,1756710653654,-492.52,0.00014561,2]
[382694828,1756710653663,-480.0,0.00014561,2]
[382694830,1756710653672,-480.0,0.00014561,2]
[382694832,1756710653681,-480.0,0.00014561,2]
[382694834,1756710653691,-480.0,0.00014561,2]
[382694836,1756710653701,-480.0,0.00014561,2]
[382694838,1756710653710,-186.530103,0.00014561,2]
[382694840,1756710653721,-480.0,0.00014561,2]
[382694842,1756710653731,-319.321958,0.00014561,2]
[382694844,1756710653740,-319.321958,0.00014561,2]
[382694846,1756710653750,-319.321958,0.00014561,2]
[382694848,1756710653759,-319.321948,0.00014561,2]
[382694850,1756710653769,-1012.35,0.00014561,2]
[382694852,1756710653779,-480.0,0.00014561,2]
[382694854,1756710653788,-480.0,0.00014561,2]
[382694856,1756710653797,-480.0,0.00014561,2]
[382694858,1756710653807,-480.0,0.00014561,2]
[382694860,1756710653815,-187.69239414,0.00014561,2]
[382694862,1756710653825,-572.55,0.00014561,2]
[382694864,1756710653834,-480.0,0.00014561,2]
[382694866,1756710653844,-480.0,0.00014561,2]
[382694868,1756710653853,-480.0,0.00014561,2]
[382694870,1756710653862,-480.0,0.00014561,2]
[382694872,1756710653871,-486.95,0.00014561,2]
[382694874,1756710653880,-591.96021485,0.00014561,2]
[382694875,1756710653889,-480.0,0.00014561,2]
[382694877,1756710653899,-597.6494497,0.00014561,2]
[382694879,1756710653908,-755.11,0.00014561,2]
[382694881,1756710653917,-480.0,0.00014561,2]
[382694883,1756710653928,-151.0,0.00014562,2]
[382694885,1756710653938,-480.0,0.00014562,2]
[382694887,1756710653947,-151.0,0.00014562,2]
[382694889,1756710653957,-151.0,0.00014562,2]
[382694891,1756710653966,-151.0,0.00014562,2]
[382694893,1756710653977,-692.96,0.00014562,2]
[382694895,1756710653985,-151.0,0.00014562,2]
[382694897,1756710653995,-151.0,0.00014562,2]
[382694899,1756710654005,-245.079488,0.00014562,2]
[382694901,1756710654014,-245.079488,0.00014562,2]
[382694903,1756710654023,-245.079488,0.00014562,2]
[382694905,1756710654033,-245.079488,0.00014562,2]
[382694907,1756710654042,-895.01,0.00014562,2]
[382694909,1756710654051,-1036.69,0.00014562,2]
[382694911,1756710654060,-154.304176,0.00014562,2]
[382694913,1756710654069,-514.62,0.00014562,2]
[382694915,1756710654079,-480.0,0.00014562,2]
[382694917,1756710654089,-597.14,0.00014562,2]
[382694919,1756710654099,-566.67,0.00014562,2]
[382694921,1756710654108,-557.89,0.00014562,2]
[382694923,1756710654118,-480.0,0.00014562,2]
[382694925,1756710654127,-794.7,0.00014562,2]
[382694927,1756710654137,-480.0,0.00014562,2]
[382694929,1756710654147,-278.677164,0.00014562,2]
[382694931,1756710654156,-278.677164,0.00014562,2]
[382694933,1756710654165,-278.677164,0.00014562,2]
[382694935,1756710654176,-278.677161,0.00014562,2]
[382694937,1756710654185,-526.85,0.00014562,2]
[382694939,1756710654194,-168.636159,0.00014562,2]
[382694941,1756710654204,-817.22,0.00014562,2]
[382694943,1756710654214,-480.0,0.00014562,2]
[382694945,1756710654223,-1428.46,0.00014562,2]
[382694947,1756710654233,-804.71,0.00014562,2]
[382694949,1756710654243,-480.0,0.00014562,2]
[382694951,1756710654251,-480.0,0.00014562,2]
[382694953,1756710654260,-480.0,0.00014562,2]
[382694955,1756710654270,-545.74,0.00014562,2]
[382694957,1756710654279,-481.84530121,0.00014562,2]
[382694959,1756710654289,-480.0,0.00014562,2]
[382694961,1756710654298,-480.0,0.00014563,2]
[382694963,1756710654311,-480.0,0.00014563,2]
[382694965,1756710654327,-480.0,0.00014563,2]
[382694967,1756710654336,-480.0,0.00014563,2]
[382694969,1756710654345,-481.97117126,0.00014563,2]
[382694971,1756710654354,-480.0,0.00014563,2]
[382694973,1756710654364,-480.0,0.00014563,2]
[382694975,1756710654373,-480.0,0.00014563,2]
[382694977,1756710654382,-480.0,0.00014563,2]
[382694979,1756710654391,-480.0,0.00014563,2]
[382694981,1756710654402,-805.25,0.00014563,2]
[382694983,1756710654411,-646.06,0.00014563,2]
[382694985,1756710654421,-480.0,0.00014563,2]
[382694987,1756710654430,-480.0,0.00014563,2]
[382694989,1756710654439,-480.0,0.00014563,2]
[382694991,1756710654450,-480.0,0.00014563,2]
[382694993,1756710654459,-480.0,0.00014563,2]
[382694995,1756710654469,-641.61,0.00014563,2]
[382694997,1756710654478,-693.51,0.00014563,2]
[382694999,1756710654488,-480.0,0.00014563,2]
[382695001,1756710654497,-480.0,0.00014563,2]
[382695003,1756710654507,-564.58,0.00014563,2]
[382695005,1756710654517,-772.76,0.00014563,2]
[382695007,1756710654526,-480.0,0.00014563,2]
[382695009,1756710654535,-480.0,0.00014563,2]
[382695011,1756710654545,-923.46,0.00014563,2]
[382695013,1756710654555,-480.0,0.00014563,2]
[382695015,1756710654564,-480.0,0.00014563,2]
[382695017,1756710654574,-480.0,0.00014563,2]
[382695019,1756710654584,-480.0,0.00014563,2]
[382695021,1756710654594,-151.0,0.00014563,2]
[382695023,1756710654603,-294.511964,0.00014563,2]
[382695025,1756710654613,-480.0,0.00014563,2]
[382695027,1756710654623,-480.0,0.00014563,2]
[382695029,1756710654632,-480.0,0.00014563,2]
[382695031,1756710654642,-480.0,0.00014563,2]
[382695033,1756710654651,-480.0,0.00014563,2]
[382695035,1756710654661,-480.0,0.00014563,2]
[382695037,1756710654671,-482.61,0.00014563,2]
[382695039,1756710654680,-558.69,0.00014563,2]
[382695041,1756710654690,-151.0,0.00014563,2]
[382695043,1756710654699,-237.591761,0.00014563,2]
[382695045,1756710654710,-1175.92,0.00014563,2]
[382695047,1756710654720,-617.83,0.00014563,2]
[382695049,1756710654730,-480.0,0.00014563,2]
[382695051,1756710654740,-480.0,0.00014563,2]
[382695053,1756710654750,-304.76388619,0.00014563,2]
[382695055,1756710654759,-480.0,0.00014563,2]
[382695057,1756710654769,-606.23,0.00014563,2]
[382695059,1756710654778,-525.85,0.00014563,2]
[382695061,1756710654788,-480.0,0.00014563,2]
[382695063,1756710654797,-151.0,0.00014563,2]
[382695065,1756710654807,-480.0,0.00014563,2]
[382695067,1756710654816,-14273.6083613,0.00014568,2]
[382695069,1756710654825,-36219.3012701,0.00014568,2]
[382695071,1756710654835,-180.09513407,0.0001457,2]
[382695073,1756710654844,-195.389863,0.00014572,2]
[382695075,1756710654853,-151.0,0.00014572,2]
[382695077,1756710654863,-151.0,0.00014572,2]
[382695079,1756710654872,-151.0,0.00014572,2]
[382695081,1756710654883,-151.0,0.00014572,2]
[382695083,1756710654893,-501.2860732,0.00014573,2]
[382695085,1756710654902,-500.0,0.00014573,2]
[382695087,1756710654911,-500.0,0.00014573,2]
[382695089,1756710654921,-500.73360869,0.00014573,2]
[382695091,1756710654937,-500.0,0.00014573,2]
[382695093,1756710654946,-500.0,0.00014573,2]
[382695095,1756710654956,-500.0,0.00014573,2]
[382695097,1756710654965,-500.0,0.00014573,2]
[382695099,1756710654975,-500.0,0.00014573,2]
[382695101,1756710654985,-373.18991585,0.00014573,2]
[382695103,1756710654995,-500.0,0.00014573,2]
[382695105,1756710655004,-500.0,0.00014573,2]
[382695107,1756710655016,-213.6765226,0.00014573,2]
[382695109,1756710655026,-500.0,0.00014573,2]
[382695111,1756710655035,-500.0,0.00014573,2]
[382695113,1756710655044,-500.0,0.00014573,2]
[382695115,1756710655053,-500.74315715,0.00014573,2]
[382695117,1756710655063,-502.36207162,0.00014573,2]
[382695119,1756710655074,-500.0,0.00014573,2]
[382695121,1756710655084,-609.04795178,0.00014573,2]
[382695123,1756710655095,-500.0,0.00014573,2]
[382695125,1756710655104,-500.40338952,0.00014573,2]
[382695127,1756710655113,-151.0,0.000146,2]
[382695129,1756710655122,-151.0,0.000146,2]
[382695131,1756710655131,-500.0,0.00014661,2]
[382695133,1756710655140,-5888.0,0.00014686,2]
[382695135,1756710655150,-151.0,0.000147,2]
[382695137,1756710655159,-151.0,0.000147,2]
[382695139,1756710655169,-887.38197957,0.00014734,2]
[382695141,1756710655178,-230.0,0.00014756,2]
[382695143,1756710655188,-230.0,0.00014768,2]
[382695145,1756710655197,-461.0,0.00014799,2]
[382695147,1756710655206,-151.0,0.000148,2]
[382695149,1756710655215,-155.579698,0.000148,2]
[382695151,1756710655224,-151.0,0.000148,2]
[382695153,1756710655233,-151.0,0.000148,2]
[382695155,1756710655242,-12520.81869051,0.00014812,2]
[382695157,1756710655253,-393.0,0.00014827,2]
[382695159,1756710655262,-480.0,0.00014832,2]
[382695161,1756710655271,-480.0,0.00014832,2]
[382695163,1756710655281,-1190.77,0.00014832,2]
[382695165,1756710655290,-480.0,0.00014832,2]
[382695167,1756710655300,-480.0,0.00014832,2]
[382695169,1756710655309,-900.84,0.00014832,2]
[382695171,1756710655319,-1808.15,0.00014832,2]
[382695173,1756710655327,-480.0,0.00014832,2]
[382695175,1756710655337,-1251.99,0.00014832,2]
[382695177,1756710655347,-480.0,0.00014832,2]
[382695179,1756710655357,-1764.67,0.00014832,2]
[382695181,1756710655367,-230.0,0.00014832,2]
[382695183,1756710655376,-500.0,0.00014833,2]
[382695185,1756710655385,-156.16563522,0.00014833,2]
[382695187,1756710655395,-252.84445179,0.00014833,2]
[382695189,1756710655404,-1432.0,0.00014833,2]
[382695191,1756710655413,-156.17964755,0.00014833,2]
[382695193,1756710655423,-158.43210087,0.00014833,2]
[382695195,1756710655432,-480.0,0.00014833,2]
[382695197,1756710655441,-851.54,0.00014833,2]
[382695199,1756710655451,-480.0,0.00014833,2]
[382695201,1756710655460,-282.09934338,0.00014833,2]
[382695203,1756710655469,-480.0,0.00014833,2]
[382695205,1756710655479,-480.0,0.00014833,2]
[382695207,1756710655488,-480.0,0.00014833,2]
[382695209,1756710655498,-480.0,0.00014833,2]
[382695211,1756710655507,-151.0,0.00014833,2]
[382695213,1756710655517,-480.0,0.00014833,2]
[382695215,1756710655526,-480.0,0.00014833,2]
[382695217,1756710655535,-151.0,0.00014833,2]
[382695219,1756710655545,-155.218102,0.00014833,2]
[382695221,1756710655554,-480.0,0.00014833,2]
[382695223,1756710655563,-151.0,0.00014833,2]
[382695225,1756710655573,-151.0,0.00014833,2]
[382695227,1756710655582,-480.0,0.00014833,2]
[382695229,1756710655593,-480.0,0.00014833,2]
[382695231,1756710655602,-245.079488,0.00014833,2]
[382695233,1756710655612,-245.079488,0.00014833,2]
[382695235,1756710655621,-245.079488,0.00014833,2]
[382695237,1756710655631,-245.079494,0.00014833,2]
[382695239,1756710655640,-581.78,0.00014833,2]
[382695241,1756710655650,-504.59,0.00014833,2]
[382695243,1756710655659,-907.92,0.00014833,2]
[382695245,1756710655669,-480.0,0.00014833,2]
[382695247,1756710655678,-589.06,0.00014833,2]
[382695249,1756710655687,-623.19,0.00014833,2]
[382695251,1756710655697,-480.0,0.00014833,2]
[382695253,1756710655706,-480.0,0.00014833,2]
[382695255,1756710655716,-480.0,0.00014833,2]
[382695257,1756710655725,-480.0,0.00014833,2]
[382695259,1756710655734,-416.18769088,0.00014833,2]
[382695261,1756710655744,-480.0,0.00014833,2]
[382695263,1756710655753,-631.58,0.00014833,2]
[382695265,1756710655762,-365.96116254,0.00014833,2]
[382695267,1756710655772,-480.0,0.00014833,2]
[382695269,1756710655781,-817.78,0.00014833,2]
[382695271,1756710655791,-634.08,0.00014833,2]
[382695273,1756710655800,-480.0,0.00014833,2]
[382695275,1756710655810,-480.0,0.00014833,2]
[382695277,1756710655819,-480.0,0.00014833,2]
[382695279,1756710655828,-480.0,0.00014833,2]
[382695281,1756710655838,-751.66,0.00014833,2]
[382695283,1756710655848,-480.0,0.00014833,2]
[382695285,1756710655857,-480.56,0.00014833,2]
[382695287,1756710655867,-787.42,0.00014833,2]
[382695289,1756710655876,-964.57,0.00014833,2]
[382695291,1756710655886,-480.0,0.00014833,2]
[382695293,1756710655895,-791.7,0.00014833,2]
[382695295,1756710655905,-480.0,0.00014833,2]
[382695297,1756710655914,-2155.71,0.00014833,2]
[382695299,1756710655924,-517.84,0.00014833,2]
[382695301,1756710655936,-480.0,0.00014833,2]
[382695303,1756710655946,-698.63,0.00014833,2]
[382695305,1756710655955,-480.0,0.00014833,2]
[382695307,1756710655965,-744.38,0.00014833,2]
[382695309,1756710655974,-480.0,0.00014833,2]
[382695311,1756710655983,-480.0,0.00014833,2]
[382695313,1756710655993,-1049.21,0.00014833,2]
[382695315,1756710656004,-590.34,0.00014833,2]
[382695317,1756710656014,-480.0,0.00014833,2]
[382695319,1756710656023,-645.2,0.00014833,2]
[382695321,1756710656032,-480.0,0.00014833,2]
[382695323,1756710656042,-480.0,0.00014833,2]
[382695325,1756710656051,-699.41,0.00014833,2]
[382695327,1756710656060,-480.0,0.00014833,2]
[382695329,1756710656070,-480.0,0.00014833,2]
[382695331,1756710656079,-319.73086339,0.00014833,2]
[382695333,1756710656088,-946.47,0.00014833,2]
[382695335,1756710656098,-576.9,0.00014833,2]
[382695337,1756710656108,-480.0,0.00014833,2]
[382695339,1756710656117,-708.73,0.00014833,2]
[382695341,1756710656126,-842.48,0.00014833,2]
[382695342,1756710656135,-480.0,0.00014833,2]
[382695344,1756710656144,-480.0,0.00014833,2]
[382695346,1756710656153,-637.94,0.00014833,2]
[382695349,1756710656163,-480.0,0.00014833,2]
[382695351,1756710656173,-480.0,0.00014833,2]
[382695352,1756710656182,-917.63,0.00014833,2]
[382695355,1756710656191,-428.87681854,0.00014833,2]
[382695357,1756710656201,-503.19,0.00014833,2]
[382695359,1756710656211,-480.0,0.00014833,2]
[382695361,1756710656220,-1091.77,0.00014833,2]
[382695363,1756710656229,-480.0,0.00014833,2]
[382695365,1756710656238,-480.0,0.00014833,2]
[382695367,1756710656248,-298.48796541,0.00014834,2]
[382695369,1756710656257,-166.26133616,0.00014834,2]
[382695370,1756710656266,-500.0,0.00014834,2]
[382695372,1756710656275,-773.67,0.00014834,2]
[382695374,1756710656285,-508.16214346,0.00014834,2]
[382695375,1756710656294,-779.01,0.00014834,2]
[382695377,1756710656304,-151.0,0.00014834,2]
[382695379,1756710656313,-480.0,0.00014834,2]
[382695381,1756710656323,-566.67,0.00014834,2]
[382695382,1756710656332,-480.0,0.00014834,2]
[382695384,1756710656341,-504.35,0.00014834,2]
[382695386,1756710656350,-480.0,0.00014834,2]
[382695388,1756710656359,-480.0,0.00014834,2]
[382695389,1756710656369,-556.3,0.00014834,2]
[382695391,1756710656379,-1100.19,0.00014834,2]
[382695393,1756710656388,-480.0,0.00014834,2]
[382695395,1756710656401,-480.0,0.00014834,2]
[382695396,1756710656410,-480.0,0.00014834,2]
[382695398,1756710656419,-917.12,0.00014834,2]
[382695400,1756710656428,-996.71,0.00014834,2]
[382695402,1756710656438,-151.0,0.00014834,2]
[382695403,1756710656447,-480.0,0.00014834,2]
[382695405,1756710656457,-1027.18,0.00014834,2]
[382695407,1756710656466,-480.0,0.00014834,2]
[382695409,1756710656475,-894.41,0.00014834,2]
[382695410,1756710656485,-480.0,0.00014834,2]
[382695412,1756710656495,-480.0,0.00014834,2]
[382695414,1756710656505,-499.82,0.00014834,2]
[382695416,1756710656515,-480.0,0.00014834,2]
[382695417,1756710656523,-556.35,0.00014834,2]
[382695419,1756710656533,-480.0,0.00014834,2]
[382695421,1756710656541,-972.48,0.00014834,2]
[382695422,1756710656551,-991.88,0.00014834,2]
[382695424,1756710656561,-1001.58,0.00014834,2]
[382695426,1756710656570,-480.0,0.00014834,2]
[382695427,1756710656578,-798.82,0.00014834,2]
[382695429,1756710656588,-480.0,0.00014834,2]
[382695431,1756710656598,-1206.93,0.00014834,2]
[382695433,1756710656608,-1014.88,0.00014834,2]
[382695434,1756710656616,-1203.81,0.00014834,2]
[382695436,1756710656626,-2611.98,0.00014834,2]
[382695438,1756710656635,-480.0,0.00014834,2]
[382695439,1756710656644,-558.68,0.00014834,2]
[382695441,1756710656653,-4712.07,0.00014834,2]
[382695443,1756710656662,-1367.63,0.00014834,2]
[382695445,1756710656671,-480.0,0.00014834,2]
[382695447,1756710656679,-480.0,0.00014834,2]
[382695448,1756710656688,-480.0,0.00014834,2]
[382695450,1756710656697,-1100.92,0.00014834,2]
[382695452,1756710656707,-480.0,0.00014834,2]
[382695454,1756710656716,-1047.94,0.00014834,2]
[382695455,1756710656725,-827.98,0.00014834,2]
[382695457,1756710656734,-2031.35,0.00014834,2]
[382695459,1756710656743,-480.0,0.00014834,2]
[382695461,1756710656753,-1673.94,0.00014834,2]
[382695463,1756710656762,-4464.16,0.00014834,2]
[382695465,1756710656771,-638.69,0.00014834,2]
[382695466,1756710656780,-1073.57,0.00014834,2]
[382695468,1756710656789,-4391.27,0.00014834,2]
[382695470,1756710656798,-1842.33,0.00014834,2]
[382695485,1756710656963,-586.42,0.00014834,2]
[382695487,1756710656973,-525.2,0.00014834,2]
[382695489,1756710656983,-1281.34,0.00014834,2]
[382695491,1756710656992,-1134.87,0.00014834,2]
[382695493,1756710657002,-568.54,0.00014834,2]
[382695494,1756710657011,-594.62,0.00014834,2]
[382695496,1756710657021,-480.0,0.00014834,2]
[382695498,1756710657030,-558.22,0.00014834,2]
[382695500,1756710657039,-480.0,0.00014834,2]
[382695502,1756710657048,-1229.97,0.00014834,2]
[382695503,1756710657057,-1065.05,0.00014834,2]
[382695505,1756710657066,-480.0,0.00014835,2]
[382695507,1756710657076,-480.0,0.00014835,2]
[382695509,1756710657085,-480.0,0.00014835,2]
[382695511,1756710657094,-484.92657087,0.00014835,2]
[382695512,1756710657103,-480.0,0.00014835,2]
[382695514,1756710657113,-777.42,0.00014835,2]
[382695516,1756710657122,-480.0,0.00014835,2]
[382695518,1756710657132,-480.0,0.00014835,2]
[382695520,1756710657141,-773.54,0.00014835,2]
[382695521,1756710657150,-793.87,0.00014835,2]
[382695523,1756710657159,-480.0,0.00014835,2]
[382695525,1756710657168,-1102.87,0.00014835,2]
[382695527,1756710657177,-510.93,0.00014835,2]
[382695529,1756710657187,-480.0,0.00014835,2]
[382695530,1756710657197,-480.0,0.00014835,2]
[382695532,1756710657207,-480.0,0.00014835,2]
[382695534,1756710657217,-480.0,0.00014835,2]
[382695536,1756710657227,-480.0,0.00014835,2]
[382695538,1756710657236,-205.36542853,0.00014835,2]
[382695540,1756710657245,-480.0,0.00014835,2]
[382695541,1756710657255,-480.0,0.00014835,2]
[382695543,1756710657264,-480.0,0.00014835,2]
[382695545,1756710657273,-1037.39,0.00014835,2]
[382695547,1756710657283,-480.0,0.00014835,2]
[382695548,1756710657292,-480.0,0.00014835,2]
[382695550,1756710657301,-963.04,0.00014835,2]
[382695552,1756710657310,-480.0,0.00014835,2]
[382695554,1756710657320,-151.0,0.00014835,2]
[382695556,1756710657330,-151.0,0.00014835,2]
[382695558,1756710657339,-480.0,0.00014835,2]
[382695559,1756710657348,-151.0,0.00014835,2]
[382695561,1756710657357,-151.0,0.00014835,2]
[382695563,1756710657367,-480.0,0.00014835,2]
[382695565,1756710657376,-613.41,0.00014835,2]
[382695567,1756710657386,-480.0,0.00014835,2]
[382695568,1756710657395,-484.77,0.00014835,2]
[382695570,1756710657405,-480.0,0.00014835,2]
[382695572,1756710657416,-480.0,0.00014835,2]
[382695574,1756710657428,-480.0,0.00014835,2]
[382695576,1756710657437,-495.77,0.00014835,2]
[382695578,1756710657447,-480.0,0.00014835,2]
[382695579,1756710657456,-480.0,0.00014835,2]
[382695581,1756710657465,-480.0,0.00014835,2]
[382695583,1756710657475,-506.5,0.00014835,2]
[382695585,1756710657484,-584.16381811,0.00014835,2]
[382695587,1756710657493,-962.24,0.00014835,2]
[382695588,1756710657503,-480.0,0.00014835,2]
[382695590,1756710657518,-480.0,0.00014835,2]
[382695592,1756710657530,-876.93,0.00014835,2]
[382695594,1756710657539,-480.0,0.00014835,2]
[382695596,1756710657549,-474.53174024,0.00014835,2]
[382695597,1756710657558,-480.0,0.00014835,2]